[Event "*** Titled Tuesday Blitz AM"]
[Site "Chess.com"]
[Date "2020.01.07"]
[Round "8"]
[White "Saloni1299"]
[Black "Colombiano07"]
[Result "1-0"]
[WhiteElo "2098"]
[BlackElo "2166"]
[TimeControl "180+2"]
[EndTime "10:46:45 PST"]
[Termination "Saloni1299 won by resignation"]

1. e4 {[%clk 0:03:01.9]} 1... c5 {[%clk 0:02:56.1]} 2. Nf3 {[%clk 0:03:01.9]}
2... Nc6 {[%clk 0:02:53.7]} 3. d4 {[%clk 0:03:02.8]} 3... cxd4 {[%clk
0:02:52.5]} 4. Nxd4 {[%clk 0:03:03.6]} 4... Nf6 {[%clk 0:02:54]} 5. Nc3 {[%clk
0:03:03.2]} 5... g6 {[%clk 0:02:53.3]} 6. Be3 {[%clk 0:02:59.3]} 6... Bg7 {[%clk
0:02:53.3]} 7. Bc4 {[%clk 0:03:00.3]} 7... O-O {[%clk 0:02:54.3]} 8. Bb3 {[%clk
0:02:58]} 8... a5 {[%clk 0:02:55.6]} 9. O-O {[%clk 0:02:56.3]} 9... a4 {[%clk
0:02:56.6]} 10. Nxa4 {[%clk 0:02:57.4]} 10... Nxe4 {[%clk 0:02:57.5]} 11. Nb5
{[%clk 0:02:58.6]} 11... Ra6 {[%clk 0:02:59.1]} 12. c4 {[%clk 0:02:47.4]} 12...
d6 {[%clk 0:02:46.2]} 13. Qe2 {[%clk 0:02:48.2]} 13... Be6 {[%clk 0:02:41.8]}
14. f3 {[%clk 0:02:40.5]} 14... Nf6 {[%clk 0:02:39.7]} 15. Rfd1 {[%clk
0:02:35.1]} 15... Nd7 {[%clk 0:02:26.4]} 16. Rac1 {[%clk 0:02:30.9]} 16... Qb8
{[%clk 0:02:15.9]} 17. Nac3 {[%clk 0:02:22.5]} 17... Nc5 {[%clk 0:02:06.5]} 18.
Nd5 {[%clk 0:02:23.3]} 18... Nxb3 {[%clk 0:02:05.7]} 19. axb3 {[%clk 0:02:23.3]}
19... Bxd5 {[%clk 0:02:01]} 20. cxd5 {[%clk 0:02:21.3]} 20... Ne5 {[%clk
0:01:28.8]} 21. Rc7 {[%clk 0:02:20.9]} 21... Re8 {[%clk 0:01:14.8]} 22. f4
{[%clk 0:02:21.6]} 22... Ra5 {[%clk 0:01:08.2]} 23. fxe5 {[%clk 0:02:20.6]}
23... Rxb5 {[%clk 0:01:08.8]} 24. Qxb5 {[%clk 0:02:21.5]} 1-0

[Event "*** Titled Tuesday Blitz AM"]
[Site "Chess.com"]
[Date "2020.01.07"]
[Round "8"]
[White "TregubovP"]
[Black "mouseWLZ"]
[Result "0-1"]
[WhiteElo "2611"]
[BlackElo "2809"]
[TimeControl "180+2"]
[EndTime "10:46:52 PST"]
[Termination "mouseWLZ won by resignation"]

1. e4 {[%clk 0:03:01.9]} 1... d5 {[%clk 0:02:53.8]} 2. exd5 {[%clk 0:03:02.2]}
2... Qxd5 {[%clk 0:02:55.7]} 3. Nc3 {[%clk 0:03:02.8]} 3... Qd6 {[%clk
0:02:56.7]} 4. d4 {[%clk 0:03:00.1]} 4... c6 {[%clk 0:02:57.7]} 5. Bc4 {[%clk
0:02:54.2]} 5... Nf6 {[%clk 0:02:58.4]} 6. Nf3 {[%clk 0:02:51.3]} 6... Bf5
{[%clk 0:02:58.8]} 7. O-O {[%clk 0:02:50.1]} 7... e6 {[%clk 0:03:00]} 8. Qe2
{[%clk 0:02:44.5]} 8... Be7 {[%clk 0:03:00.3]} 9. Bg5 {[%clk 0:02:41.3]} 9...
Nbd7 {[%clk 0:02:56.8]} 10. Bh4 {[%clk 0:02:41.6]} 10... O-O {[%clk 0:02:56.6]}
11. Bg3 {[%clk 0:02:32.1]} 11... Qb4 {[%clk 0:02:57.5]} 12. Bb3 {[%clk
0:02:32.3]} 12... Rfe8 {[%clk 0:02:44.8]} 13. Rad1 {[%clk 0:02:28.2]} 13... Qa5
{[%clk 0:02:38.3]} 14. h3 {[%clk 0:02:27.2]} 14... h6 {[%clk 0:02:32.7]} 15. Ne5
{[%clk 0:02:11.7]} 15... Rad8 {[%clk 0:02:21.9]} 16. Nc4 {[%clk 0:02:04.5]}
16... Qa6 {[%clk 0:02:20.7]} 17. Nd6 {[%clk 0:02:03.5]} 17... Qxe2 {[%clk
0:02:18.8]} 18. Nxe2 {[%clk 0:02:04.9]} 18... Bxd6 {[%clk 0:02:20.7]} 19. Bxd6
{[%clk 0:02:05]} 19... b5 {[%clk 0:02:19.6]} 20. c3 {[%clk 0:01:55]} 20... a5
{[%clk 0:02:14.9]} 21. Bc7 {[%clk 0:01:45.8]} 21... Ra8 {[%clk 0:02:08.9]} 22.
a4 {[%clk 0:01:46.8]} 22... Nd5 {[%clk 0:02:07.3]} 23. Bd6 {[%clk 0:01:42.2]}
23... N7b6 {[%clk 0:02:06.3]} 24. axb5 {[%clk 0:01:42]} 24... cxb5 {[%clk
0:02:08]} 25. Nf4 {[%clk 0:01:27.4]} 25... Nxf4 {[%clk 0:02:05.5]} 26. d5 {[%clk
0:01:28.5]} 26... a4 {[%clk 0:02:07.4]} 0-1

[Event "*** Titled Tuesday Blitz AM"]
[Site "Chess.com"]
[Date "2020.01.07"]
[Round "8"]
[White "GianmarcoVaR"]
[Black "JozefKneht"]
[Result "1-0"]
[WhiteElo "2573"]
[BlackElo "2407"]
[TimeControl "180+2"]
[EndTime "10:46:54 PST"]
[Termination "GianmarcoVaR won by resignation"]

1. g3 {[%clk 0:00:18.5]} 1... e5 {[%clk 0:02:51.4]} 2. Bg2 {[%clk 0:00:19.4]}
2... d5 {[%clk 0:02:51.1]} 3. c4 {[%clk 0:00:20]} 3... d4 {[%clk 0:02:50.7]} 4.
d3 {[%clk 0:00:19.2]} 4... c5 {[%clk 0:02:51.5]} 5. e3 {[%clk 0:00:20.5]} 5...
Nc6 {[%clk 0:02:51.9]} 6. exd4 {[%clk 0:00:21.7]} 6... exd4 {[%clk 0:02:52.3]}
7. Ne2 {[%clk 0:00:22.5]} 7... Bd6 {[%clk 0:02:49.6]} 8. O-O {[%clk 0:00:23.6]}
8... Nge7 {[%clk 0:02:49.6]} 9. a3 {[%clk 0:00:25]} 9... a5 {[%clk 0:02:48.9]}
10. Nd2 {[%clk 0:00:26.3]} 10... O-O {[%clk 0:02:49.6]} 11. Ne4 {[%clk
0:00:27.6]} 11... b6 {[%clk 0:02:44.3]} 12. Nxd6 {[%clk 0:00:28.6]} 12... Qxd6
{[%clk 0:02:44.8]} 13. Nf4 {[%clk 0:00:29.8]} 13... Bb7 {[%clk 0:02:43.9]} 14.
Qb3 {[%clk 0:00:30.4]} 14... a4 {[%clk 0:02:28.7]} 15. Qxb6 {[%clk 0:00:27]}
15... Ra6 {[%clk 0:02:29.2]} 16. Qxb7 {[%clk 0:00:22.3]} 16... Rb8 {[%clk
0:02:28.3]} 17. Qxa6 {[%clk 0:00:23.3]} 1-0

[Event "*** Titled Tuesday Blitz AM"]
[Site "Chess.com"]
[Date "2020.01.07"]
[Round "8"]
[White "JSPrepz"]
[Black "Angry_Serb"]
[Result "1-0"]
[WhiteElo "2810"]
[BlackElo "2653"]
[TimeControl "180+2"]
[EndTime "10:47:01 PST"]
[Termination "JSPrepz won by resignation"]

1. e4 {[%clk 0:03:01.1]} 1... c5 {[%clk 0:02:56.3]} 2. Nf3 {[%clk 0:03:01.9]}
2... Nc6 {[%clk 0:02:57.7]} 3. b4 {[%clk 0:03:02.3]} 3... b6 {[%clk 0:02:47.7]}
4. bxc5 {[%clk 0:02:59.1]} 4... bxc5 {[%clk 0:02:49.6]} 5. Bb5 {[%clk
0:02:58.4]} 5... Nd4 {[%clk 0:02:43.4]} 6. Nxd4 {[%clk 0:02:57]} 6... cxd4
{[%clk 0:02:44.6]} 7. O-O {[%clk 0:02:58.7]} 7... e6 {[%clk 0:02:40.9]} 8. c3
{[%clk 0:02:51.2]} 8... Bb7 {[%clk 0:02:35]} 9. Re1 {[%clk 0:02:51]} 9... Bc5
{[%clk 0:02:30.1]} 10. cxd4 {[%clk 0:02:18.6]} 10... Bxd4 {[%clk 0:02:30.7]} 11.
Nc3 {[%clk 0:02:20.5]} 11... Nf6 {[%clk 0:02:25.7]} 12. Ba3 {[%clk 0:02:21.1]}
12... Qa5 {[%clk 0:02:08.2]} 13. Qb3 {[%clk 0:02:20.1]} 13... Bxc3 {[%clk
0:01:42.4]} 14. dxc3 {[%clk 0:02:22]} 14... Bxe4 {[%clk 0:01:43.7]} 15. Rxe4
{[%clk 0:02:09]} 15... Nxe4 {[%clk 0:01:43.8]} 16. Bxd7+ {[%clk 0:02:05]} 16...
Kd8 {[%clk 0:00:52.9]} 17. Bc6 {[%clk 0:02:05]} 17... Qxc3 {[%clk 0:00:44]} 18.
Rd1+ {[%clk 0:02:00.8]} 1-0

[Event "*** Titled Tuesday Blitz AM"]
[Site "Chess.com"]
[Date "2020.01.07"]
[Round "8"]
[White "Tayson_7"]
[Black "ViennaRocket"]
[Result "1-0"]
[WhiteElo "2560"]
[BlackElo "2387"]
[TimeControl "180+2"]
[EndTime "10:47:01 PST"]
[Termination "Tayson_7 won by resignation"]

1. d4 {[%clk 0:03:01.9]} 1... b5 {[%clk 0:03:00.5]} 2. e4 {[%clk 0:03:02]} 2...
Bb7 {[%clk 0:03:01.8]} 3. Bd3 {[%clk 0:03:00.3]} 3... Nf6 {[%clk 0:03:02.4]} 4.
f3 {[%clk 0:02:57.4]} 4... b4 {[%clk 0:03:02.7]} 5. c4 {[%clk 0:02:52.2]} 5...
bxc3 {[%clk 0:03:00]} 6. Nxc3 {[%clk 0:02:51.9]} 6... e6 {[%clk 0:03:01.5]} 7.
Nge2 {[%clk 0:02:51.1]} 7... c5 {[%clk 0:03:02.2]} 8. Be3 {[%clk 0:02:51]} 8...
cxd4 {[%clk 0:03:03.1]} 9. Nxd4 {[%clk 0:02:52.9]} 9... Nc6 {[%clk 0:03:02.9]}
10. O-O {[%clk 0:02:30.7]} 10... Bc5 {[%clk 0:02:58]} 11. Nf5 {[%clk 0:02:23.3]}
11... Bxe3+ {[%clk 0:02:57.8]} 12. Nxe3 {[%clk 0:02:23.2]} 12... O-O {[%clk
0:02:55.3]} 13. Qd2 {[%clk 0:02:22.3]} 13... Qb6 {[%clk 0:02:52.5]} 14. Kh1
{[%clk 0:02:21.8]} 14... a5 {[%clk 0:02:50.1]} 15. Nc4 {[%clk 0:02:16.7]} 15...
Qc7 {[%clk 0:02:49.5]} 16. Rac1 {[%clk 0:02:11.9]} 16... Ba6 {[%clk 0:02:45.1]}
17. Na3 {[%clk 0:02:00.6]} 17... Nb4 {[%clk 0:02:34.3]} 18. Bxa6 {[%clk
0:01:50.8]} 18... Rxa6 {[%clk 0:02:35.4]} 19. Nd5 {[%clk 0:01:47]} 19... Qd8
{[%clk 0:02:35.3]} 20. Nxb4 {[%clk 0:01:46.2]} 20... axb4 {[%clk 0:02:36.5]} 21.
Qxb4 {[%clk 0:01:47.8]} 21... d5 {[%clk 0:02:36.7]} 22. e5 {[%clk 0:01:18.9]}
22... Nd7 {[%clk 0:02:37.2]} 23. f4 {[%clk 0:01:19.6]} 23... Qa8 {[%clk
0:02:37.2]} 24. Rc7 {[%clk 0:01:14.7]} 24... Rb8 {[%clk 0:02:35.7]} 25. Qe7
{[%clk 0:01:14.8]} 25... Rxa3 {[%clk 0:02:20.2]} 26. Rxd7 {[%clk 0:01:13.2]} 1-0

[Event "*** Titled Tuesday Blitz AM"]
[Site "Chess.com"]
[Date "2020.01.07"]
[Round "8"]
[White "bluejay1897"]
[Black "Ba_clbaf_osed_ingo_3v21"]
[Result "0-1"]
[WhiteElo "2383"]
[BlackElo "2556"]
[TimeControl "180+2"]
[EndTime "10:48:09 PST"]
[Termination "Ba_clbaf_osed_ingo_3v21 won by resignation"]

1. Nf3 {[%clk 0:03:01.9]} 1... c5 {[%clk 0:03:00.7]} 2. g3 {[%clk 0:03:02.9]}
2... Nc6 {[%clk 0:03:01.7]} 3. Bg2 {[%clk 0:03:04.3]} 3... g6 {[%clk 0:02:58.8]}
4. O-O {[%clk 0:02:59]} 4... Bg7 {[%clk 0:03:00]} 5. c3 {[%clk 0:02:57.8]} 5...
e5 {[%clk 0:02:54.5]} 6. e4 {[%clk 0:02:49]} 6... Nge7 {[%clk 0:02:54.2]} 7. Qe2
{[%clk 0:02:47.1]} 7... O-O {[%clk 0:02:55.1]} 8. Na3 {[%clk 0:02:46.9]} 8... d5
{[%clk 0:02:55.8]} 9. exd5 {[%clk 0:02:47.7]} 9... Nxd5 {[%clk 0:02:57.7]} 10.
Nc4 {[%clk 0:02:44.8]} 10... Re8 {[%clk 0:02:58.5]} 11. a4 {[%clk 0:02:45.1]}
11... e4 {[%clk 0:02:43.5]} 12. Ne1 {[%clk 0:02:45.5]} 12... Nf6 {[%clk
0:02:44.5]} 13. Nc2 {[%clk 0:02:37.4]} 13... Bg4 {[%clk 0:02:43.6]} 14. Qe1
{[%clk 0:02:36.8]} 14... Qd3 {[%clk 0:02:41]} 15. N2e3 {[%clk 0:02:33.2]} 15...
Be2 {[%clk 0:02:42.2]} 16. b3 {[%clk 0:02:21.3]} 16... Bxf1 {[%clk 0:02:31.1]}
17. Bxf1 {[%clk 0:02:22.2]} 17... Qd7 {[%clk 0:02:32.2]} 18. Ba3 {[%clk
0:02:22.8]} 18... b6 {[%clk 0:02:31.8]} 19. h4 {[%clk 0:02:19.5]} 19... h5
{[%clk 0:02:30]} 20. Kh2 {[%clk 0:02:20.3]} 20... Rad8 {[%clk 0:02:29.7]} 21.
Bh3 {[%clk 0:02:20.6]} 21... Qc7 {[%clk 0:02:26.9]} 22. Qe2 {[%clk 0:02:19.2]}
22... Ne5 {[%clk 0:02:23.3]} 23. Nxe5 {[%clk 0:02:09.8]} 23... Qxe5 {[%clk
0:02:25.2]} 24. Nc4 {[%clk 0:02:10.7]} 24... Qc7 {[%clk 0:02:11.1]} 25. Re1
{[%clk 0:02:10.8]} 25... Nd7 {[%clk 0:02:08.6]} 26. Bxd7 {[%clk 0:01:59]} 26...
Qxd7 {[%clk 0:02:06.5]} 27. Kg2 {[%clk 0:01:58.7]} 27... Qd5 {[%clk 0:01:59.4]}
28. Qe3 {[%clk 0:01:56.7]} 28... f5 {[%clk 0:01:56.2]} 29. Kg1 {[%clk
0:01:49.5]} 29... Qc6 {[%clk 0:01:55.6]} 30. Qg5 {[%clk 0:01:49.2]} 30... Qf6
{[%clk 0:01:52.6]} 31. Qf4 {[%clk 0:01:49.1]} 31... Rd7 {[%clk 0:01:49.4]} 32.
Re2 {[%clk 0:01:41.7]} 32... Kh7 {[%clk 0:01:49.1]} 33. Qg5 {[%clk 0:01:24.6]}
33... Qf7 {[%clk 0:01:37.6]} 0-1

[Event "*** Titled Tuesday Blitz AM"]
[Site "Chess.com"]
[Date "2020.01.07"]
[Round "8"]
[White "Snegokhod"]
[Black "MattyDPerrine"]
[Result "1-0"]
[WhiteElo "2605"]
[BlackElo "2370"]
[TimeControl "180+2"]
[EndTime "10:48:13 PST"]
[Termination "Snegokhod won on time"]

1. e4 {[%clk 0:03:01.9]} 1... c5 {[%clk 0:02:01]} 2. Nf3 {[%clk 0:03:00.6]} 2...
e6 {[%clk 0:02:01.4]} 3. d3 {[%clk 0:03:00.5]} 3... Nc6 {[%clk 0:02:01.6]} 4.
Nbd2 {[%clk 0:03:01.2]} 4... g6 {[%clk 0:02:02]} 5. g3 {[%clk 0:03:01.5]} 5...
Bg7 {[%clk 0:02:03.2]} 6. Bg2 {[%clk 0:03:02.7]} 6... d5 {[%clk 0:02:04.8]} 7.
O-O {[%clk 0:03:01.4]} 7... Nge7 {[%clk 0:01:52.2]} 8. Re1 {[%clk 0:03:02.2]}
8... O-O {[%clk 0:01:49.6]} 9. e5 {[%clk 0:03:01.3]} 9... b5 {[%clk 0:01:43.4]}
10. h4 {[%clk 0:02:56.9]} 10... Qc7 {[%clk 0:01:31.3]} 11. Qe2 {[%clk
0:02:55.5]} 11... Nf5 {[%clk 0:01:28.3]} 12. c3 {[%clk 0:02:53.5]} 12... b4
{[%clk 0:01:28.7]} 13. Nf1 {[%clk 0:02:49.9]} 13... a5 {[%clk 0:01:13.4]} 14. g4
{[%clk 0:02:48]} 14... Nh6 {[%clk 0:00:56.6]} 15. Bxh6 {[%clk 0:02:40.1]} 15...
Bxh6 {[%clk 0:00:55.7]} 16. g5 {[%clk 0:02:41.8]} 16... Bg7 {[%clk 0:00:56.9]}
17. N1h2 {[%clk 0:02:42.4]} 17... h5 {[%clk 0:00:46.1]} 18. gxh6 {[%clk
0:02:38.8]} 18... Bxh6 {[%clk 0:00:46.4]} 19. Ng4 {[%clk 0:02:40.1]} 19... Bg7
{[%clk 0:00:47.7]} 20. Qd2 {[%clk 0:02:32.8]} 20... Ne7 {[%clk 0:00:20.8]} 21.
Qg5 {[%clk 0:02:01.1]} 21... Nf5 {[%clk 0:00:10.1]} 22. h5 {[%clk 0:02:02]}
22... Ba6 {[%clk 0:00:05.4]} 23. Rad1 {[%clk 0:01:46.4]} 1-0

[Event "*** Titled Tuesday Blitz AM"]
[Site "Chess.com"]
[Date "2020.01.07"]
[Round "8"]
[White "Yaacovn"]
[Black "Sashadav97"]
[Result "1/2-1/2"]
[WhiteElo "2798"]
[BlackElo "2569"]
[TimeControl "180+2"]
[EndTime "10:48:39 PST"]
[Termination "Game drawn by agreement"]

1. d4 {[%clk 0:03:01.9]} 1... Nf6 {[%clk 0:02:59.1]} 2. Nf3 {[%clk 0:03:03.3]}
2... e6 {[%clk 0:03:00.6]} 3. e3 {[%clk 0:03:04.7]} 3... d5 {[%clk 0:03:02]} 4.
Bd3 {[%clk 0:03:06.3]} 4... Bd6 {[%clk 0:03:02.5]} 5. Nbd2 {[%clk 0:03:07.8]}
5... b6 {[%clk 0:03:04]} 6. e4 {[%clk 0:03:09.3]} 6... dxe4 {[%clk 0:03:00.3]}
7. Nxe4 {[%clk 0:03:11.2]} 7... Bb7 {[%clk 0:03:01.9]} 8. Nxf6+ {[%clk 0:03:12]}
8... gxf6 {[%clk 0:03:01.7]} 9. Qe2 {[%clk 0:03:12.6]} 9... c6 {[%clk
0:03:02.3]} 10. c4 {[%clk 0:03:13.4]} 10... Nd7 {[%clk 0:03:03.3]} 11. O-O
{[%clk 0:03:12.2]} 11... Qc7 {[%clk 0:03:04.2]} 12. Rb1 {[%clk 0:03:09.1]} 12...
c5 {[%clk 0:02:59.2]} 13. d5 {[%clk 0:03:09.7]} 13... O-O-O {[%clk 0:03:00.2]}
14. dxe6 {[%clk 0:03:09.8]} 14... fxe6 {[%clk 0:02:58.8]} 15. Be4 {[%clk
0:03:11]} 15... Rhg8 {[%clk 0:02:56.8]} 16. g3 {[%clk 0:03:10.1]} 16... Bxe4
{[%clk 0:02:22.9]} 17. Qxe4 {[%clk 0:03:10.7]} 17... f5 {[%clk 0:02:24.5]} 18.
Qxe6 {[%clk 0:03:09.4]} 18... f4 {[%clk 0:02:25.5]} 19. Rd1 {[%clk 0:03:06.1]}
19... Rg6 {[%clk 0:02:19.7]} 20. Qe4 {[%clk 0:02:40.7]} 20... fxg3 {[%clk
0:02:20.1]} 21. hxg3 {[%clk 0:02:42]} 21... Bxg3 {[%clk 0:02:15.6]} 22. Qa8+
{[%clk 0:02:41.7]} 22... Nb8 {[%clk 0:02:16.7]} 23. Rxd8+ {[%clk 0:02:42.2]}
23... Kxd8 {[%clk 0:02:11.9]} 24. Bg5+ {[%clk 0:02:39.2]} 24... Kc8 {[%clk
0:02:05.7]} 25. fxg3 {[%clk 0:02:20.3]} 25... Qxg3+ {[%clk 0:02:04.2]} 26. Kf1
{[%clk 0:02:21.4]} 26... Rxg5 {[%clk 0:01:44.3]} 27. Nxg5 {[%clk 0:02:20.1]}
27... Qd3+ {[%clk 0:01:45.4]} 28. Kf2 {[%clk 0:02:16.1]} 28... Qxb1 {[%clk
0:01:46.9]} 29. Qxa7 {[%clk 0:02:06.7]} 29... Qxb2+ {[%clk 0:01:45.8]} 30. Kg3
{[%clk 0:02:05.6]} 30... Qc3+ {[%clk 0:01:42.6]} 31. Nf3 {[%clk 0:02:06.7]}
31... Qxc4 {[%clk 0:01:40.1]} 32. Qxb6 {[%clk 0:02:04.6]} 32... Qd5 {[%clk
0:01:41.4]} 33. a4 {[%clk 0:02:00.2]} 33... Nd7 {[%clk 0:01:40.7]} 34. Qa6+
{[%clk 0:01:59.7]} 34... Kc7 {[%clk 0:01:41.4]} 35. Qa5+ {[%clk 0:01:59.8]}
35... Kd6 {[%clk 0:01:40.1]} 36. Qa6+ {[%clk 0:01:54.5]} 36... Qc6 {[%clk
0:01:41]} 37. Qd3+ {[%clk 0:01:55.2]} 37... Kc7 {[%clk 0:01:38.7]} 38. a5 {[%clk
0:01:55.4]} 38... Qg6+ {[%clk 0:01:38.4]} 39. Qxg6 {[%clk 0:01:54.2]} 39... hxg6
{[%clk 0:01:40.3]} 40. Kf4 {[%clk 0:01:52.3]} 40... Kc6 {[%clk 0:01:40.7]} 41.
Kg5 {[%clk 0:01:52.9]} 41... Nf8 {[%clk 0:01:41.9]} 42. Kf6 {[%clk 0:01:53.7]}
42... c4 {[%clk 0:01:43.2]} 43. Ne5+ {[%clk 0:01:47.9]} 43... Kb5 {[%clk
0:01:34.7]} 44. Nxc4 {[%clk 0:01:49.8]} 44... Kxc4 {[%clk 0:01:30.1]} 45. a6
{[%clk 0:01:51.1]} 45... Nd7+ {[%clk 0:01:26.4]} 46. Kxg6 {[%clk 0:01:52.2]}
46... Nb6 {[%clk 0:01:28.3]} 1/2-1/2

[Event "*** Titled Tuesday Blitz AM"]
[Site "Chess.com"]
[Date "2020.01.07"]
[Round "8"]
[White "NewBornNow"]
[Black "MFBerna"]
[Result "1-0"]
[WhiteElo "2682"]
[BlackElo "2470"]
[TimeControl "180+2"]
[EndTime "10:48:43 PST"]
[Termination "NewBornNow won by resignation"]

1. e4 {[%clk 0:03:01.9]} 1... d5 {[%clk 0:03:00]} 2. exd5 {[%clk 0:03:02.8]}
2... Qxd5 {[%clk 0:03:01.9]} 3. Nc3 {[%clk 0:03:03.7]} 3... Qd8 {[%clk
0:03:02.8]} 4. d4 {[%clk 0:03:04.6]} 4... Nf6 {[%clk 0:03:03.6]} 5. Nf3 {[%clk
0:03:04.5]} 5... Bg4 {[%clk 0:03:04.3]} 6. h3 {[%clk 0:03:04.9]} 6... Bxf3
{[%clk 0:03:05]} 7. Qxf3 {[%clk 0:03:05.2]} 7... c6 {[%clk 0:03:05.9]} 8. Bc4
{[%clk 0:03:00.1]} 8... e6 {[%clk 0:03:07.2]} 9. Ne2 {[%clk 0:02:57.9]} 9... Be7
{[%clk 0:02:59]} 10. Bd2 {[%clk 0:02:57]} 10... Nbd7 {[%clk 0:02:59.4]} 11.
O-O-O {[%clk 0:02:57.1]} 11... Nb6 {[%clk 0:02:53.4]} 12. Bb3 {[%clk 0:02:56.3]}
12... a5 {[%clk 0:02:54.1]} 13. a3 {[%clk 0:02:55]} 13... a4 {[%clk 0:02:54.9]}
14. Ba2 {[%clk 0:02:55.3]} 14... O-O {[%clk 0:02:45.7]} 15. g4 {[%clk
0:02:56.1]} 15... Nfd5 {[%clk 0:02:39.5]} 16. h4 {[%clk 0:02:53.2]} 16... Nc7
{[%clk 0:02:23.2]} 17. g5 {[%clk 0:02:51.5]} 17... Nb5 {[%clk 0:02:11.4]} 18.
Kb1 {[%clk 0:02:49.9]} 18... Nd6 {[%clk 0:02:08.9]} 19. Rhg1 {[%clk 0:02:43.1]}
19... Nbc4 {[%clk 0:02:08.1]} 20. Bc1 {[%clk 0:02:41.1]} 20... b5 {[%clk
0:01:56.9]} 21. Qxc6 {[%clk 0:02:34.1]} 21... Rc8 {[%clk 0:01:56.7]} 22. Qf3
{[%clk 0:02:34.1]} 22... Qb6 {[%clk 0:01:47.1]} 23. c3 {[%clk 0:02:32.5]} 23...
Nf5 {[%clk 0:01:44.3]} 24. h5 {[%clk 0:02:32]} 24... Rfd8 {[%clk 0:01:37.6]} 25.
Ng3 {[%clk 0:02:31.9]} 25... Ncd6 {[%clk 0:01:25.1]} 26. Nxf5 {[%clk 0:02:31.3]}
26... Nxf5 {[%clk 0:01:24.3]} 27. d5 {[%clk 0:02:31.8]} 27... b4 {[%clk
0:01:09.7]} 28. axb4 {[%clk 0:02:30.4]} 28... Kh8 {[%clk 0:00:47.8]} 29. dxe6
{[%clk 0:02:26.9]} 29... fxe6 {[%clk 0:00:49.7]} 30. Rxd8+ {[%clk 0:02:23.8]}
30... Rxd8 {[%clk 0:00:48.4]} 31. Re1 {[%clk 0:02:24.3]} 31... Rf8 {[%clk
0:00:29.7]} 32. Rxe6 {[%clk 0:02:22.6]} 32... Qd8 {[%clk 0:00:22.2]} 33. Qd5
{[%clk 0:02:17.4]} 33... Qc8 {[%clk 0:00:10]} 34. h6 {[%clk 0:02:15.6]} 34... a3
{[%clk 0:00:09.4]} 35. hxg7+ {[%clk 0:02:14.8]} 35... Kxg7 {[%clk 0:00:11.3]}
36. Qe5+ {[%clk 0:02:14.3]} 1-0

[Event "*** Titled Tuesday Blitz AM"]
[Site "Chess.com"]
[Date "2020.01.07"]
[Round "8"]
[White "MathiasWomacka"]
[Black "csati17"]
[Result "0-1"]
[WhiteElo "2328"]
[BlackElo "2556"]
[TimeControl "180+2"]
[EndTime "10:48:45 PST"]
[Termination "csati17 won by resignation"]

1. e4 {[%clk 0:02:38.7]} 1... e6 {[%clk 0:03:00.9]} 2. d4 {[%clk 0:02:36.1]}
2... d5 {[%clk 0:03:01.8]} 3. Nd2 {[%clk 0:02:35.7]} 3... Nc6 {[%clk 0:03:01.2]}
4. Ngf3 {[%clk 0:02:35.8]} 4... Nf6 {[%clk 0:03:02]} 5. e5 {[%clk 0:02:37.2]}
5... Nd7 {[%clk 0:03:03.3]} 6. Bd3 {[%clk 0:02:38.6]} 6... Nb4 {[%clk
0:03:03.5]} 7. Be2 {[%clk 0:02:39]} 7... c5 {[%clk 0:03:04.4]} 8. c3 {[%clk
0:02:40.2]} 8... Nc6 {[%clk 0:03:05.5]} 9. O-O {[%clk 0:02:41.7]} 9... Rb8
{[%clk 0:02:44.5]} 10. Re1 {[%clk 0:02:41.6]} 10... b5 {[%clk 0:02:44.7]} 11.
Nf1 {[%clk 0:02:40]} 11... Qb6 {[%clk 0:02:42]} 12. Ng3 {[%clk 0:02:38.4]} 12...
b4 {[%clk 0:02:37.8]} 13. h4 {[%clk 0:02:24.8]} 13... Ba6 {[%clk 0:02:28.4]} 14.
Be3 {[%clk 0:02:12.6]} 14... Bxe2 {[%clk 0:02:27.6]} 15. Qxe2 {[%clk 0:02:12.8]}
15... c4 {[%clk 0:02:08.8]} 16. Ng5 {[%clk 0:02:08.8]} 16... Be7 {[%clk
0:01:59.3]} 17. Qg4 {[%clk 0:01:57.7]} 17... Bxg5 {[%clk 0:01:12.9]} 18. Qxg5
{[%clk 0:01:44.3]} 18... g6 {[%clk 0:01:13.3]} 19. Qh6 {[%clk 0:01:32.9]} 19...
Ne7 {[%clk 0:00:57.6]} 20. Qg7 {[%clk 0:01:10.7]} 20... Rg8 {[%clk 0:00:58.4]}
21. Qxh7 {[%clk 0:01:11.9]} 21... bxc3 {[%clk 0:00:51.7]} 22. bxc3 {[%clk
0:01:12.1]} 22... Qb2 {[%clk 0:00:48.3]} 23. Ne2 {[%clk 0:01:09.5]} 23... Qc2
{[%clk 0:00:41.7]} 24. Bg5 {[%clk 0:01:05.1]} 24... Nf8 {[%clk 0:00:41.6]} 25.
Qh6 {[%clk 0:01:05.2]} 25... Nf5 {[%clk 0:00:42.4]} 0-1